bitfinex/quotes_BTCUSD_20260125
["timestamp","ask_amount","ask_price","bid_price","bid_amount"]
[1769332133877,0.00063435,88341.0,88327.0,1.49250238]
[1769332140998,0.00063435,88341.0,88327.0,0.33348659]
[1769332141199,0.00063435,88341.0,88305.0,0.28330785]
[1769332141200,0.01132118,88330.0,88304.0,0.33348659]
[1769332141458,1.14247093,88329.0,88309.0,0.17396]
[1769332141624,0.30804751,88327.0,88309.0,0.17396]
[1769332141964,1.13114962,88326.0,88309.0,0.17396]
[1769332142173,0.30804751,88327.0,88309.0,0.17396]
[1769332142388,1.13114962,88326.0,88309.0,0.17396]
[1769332142798,1.13114962,88321.0,88309.0,0.17396]
[1769332143011,1.11727975,88320.0,88309.0,0.17396]
[1769332143427,0.22641564,88334.0,88308.0,0.0001592]
[1769332143428,1.11727975,88317.0,88308.0,0.0001592]
[1769332143630,1.10836501,88315.0,88308.0,0.0001592]
[1769332144672,0.31455811,88327.0,88308.0,0.0001592]
[1769332144923,1.10836501,88324.0,88308.0,0.0001592]
[1769332145115,1.10836501,88323.0,88308.0,0.0001592]
[1769332145240,1.10836501,88322.0,88308.0,0.0001592]
[1769332146090,1.10836501,88322.0,88303.0,1.47024992]
[1769332146091,1.10836501,88322.0,88307.0,0.0001203]
[1769332147919,1.10836501,88322.0,88307.0,0.31672866]
[1769332148577,0.01132105,88331.0,88308.0,1.15364156]
[1769332148578,0.174,88327.0,88308.0,1.15364156]
[1769332148781,0.174,88327.0,88309.0,0.31660836]
[1769332148980,0.00076886,88327.0,88309.0,0.31660836]
[1769332149612,1.10836501,88328.0,88309.0,0.31660836]
[1769332149858,0.0001751,88338.0,88314.0,0.31660836]
[1769332150068,0.0001751,88338.0,88307.0,0.01144443]
[1769332150069,1.10836501,88337.0,88316.0,1.15364156]
[1769332150274,1.10836501,88335.0,88317.0,0.31660836]
[1769332150477,1.10836501,88334.0,88317.0,0.31660836]
[1769332151063,1.10836501,88333.0,88317.0,0.31660836]
[1769332152963,0.0001751,88338.0,88317.0,0.31660836]
[1769332153083,0.0001751,88338.0,88313.0,0.174]
[1769332153084,1.10854011,88338.0,88320.0,1.47024992]
[1769332153588,1.10854011,88338.0,88320.0,1.15364156]
[1769332153792,0.0001751,88338.0,88323.0,0.30937537]
[1769332154017,0.0001751,88338.0,88325.0,0.30937537]
[1769332154191,0.0001751,88338.0,88313.0,0.174]
[1769332154553,0.30898521,88338.0,88313.0,0.174]
[1769332154752,1.10836501,88337.0,88314.0,1.137686]
[1769332155068,1.10836501,88337.0,88318.0,0.30937537]
[1769332155632,1.10836501,88337.0,88318.0,1.137686]
[1769332155846,1.10836501,88337.0,88318.0,1.44706137]
[1769332157025,1.10836501,88336.0,88318.0,0.30937537]
[1769332157234,0.30881011,88333.0,88313.0,0.174]
[1769332157567,1.10836501,88330.0,88313.0,0.174]
[1769332158608,0.30881011,88329.0,88314.0,0.174]
[1769332158828,0.30881011,88325.0,88314.0,0.174]
[1769332159140,1.10836501,88324.0,88314.0,0.174]
[1769332160643,0.01132054,88335.0,88314.0,0.174]
[1769332160644,1.10836501,88335.0,88314.0,0.174]
[1769332160850,1.10836501,88333.0,88314.0,0.174]
[1769332161052,1.10836501,88333.0,88316.0,0.30937537]
[1769332161266,1.10836501,88333.0,88317.0,1.44706137]
[1769332162399,0.30881011,88335.0,88315.0,0.30937537]
[1769332162602,0.30881011,88335.0,88316.0,1.137686]
[1769332162802,1.10854011,88338.0,88316.0,1.137686]
[1769332163127,1.41735022,88338.0,88316.0,1.137686]
[1769332163332,1.10854011,88338.0,88316.0,1.137686]
[1769332163775,0.0001751,88338.0,88318.0,1.137686]
[1769332163978,0.0001751,88338.0,88320.0,1.137686]
[1769332165673,0.0001751,88338.0,88321.0,1.15245741]
[1769332165853,0.0001751,88338.0,88321.0,1.137686]
[1769332166151,0.0001751,88338.0,88322.0,0.01477124]
[1769332167317,0.0001751,88338.0,88324.0,0.30937537]
[1769332171753,0.0001751,88338.0,88325.0,0.30937537]
[1769332172170,0.0001751,88338.0,88326.0,0.174]
[1769332175049,0.01132028,88337.0,88319.0,0.174]
[1769332175247,0.94155001,88333.0,88319.0,0.174]
[1769332175467,0.06792255,88336.0,88319.0,0.174]
[1769332175468,0.29899864,88330.0,88319.0,0.174]
[1769332175593,0.94155001,88329.0,88319.0,0.174]
[1769332177518,0.0001751,88338.0,88321.0,1.13826247]
[1769332177721,0.0001751,88338.0,88324.0,0.31350234]
[1769332177856,0.0001751,88338.0,88324.0,1.45176481]
[1769332178199,0.00047515,88341.0,88324.0,1.45176481]
[1769332178200,0.94155001,88342.0,88324.0,1.45176481]
[1769332178343,0.94159748,88342.0,88324.0,1.45176481]
[1769332179817,4.747e-05,88342.0,88325.0,0.31350234]
[1769332180002,4.747e-05,88342.0,88329.0,0.31350234]
[1769332180204,4.747e-05,88342.0,88330.0,0.31350234]
[1769332181593,4.747e-05,88342.0,88330.0,1.13826247]
[1769332181793,4.747e-05,88342.0,88331.0,0.31350234]
[1769332182344,4.747e-05,88342.0,88332.0,0.31350234]
[1769332182735,4.747e-05,88342.0,88333.0,0.31350234]
[1769332183124,4.747e-05,88342.0,88335.0,0.31350234]
[1769332183488,4.747e-05,88342.0,88336.0,0.31350234]
[1769332187987,0.0004,88345.0,88336.0,0.31350234]
[1769332188402,0.0004,88345.0,88336.0,1.13826247]
[1769332188579,0.0004,88345.0,88337.0,0.31350234]
[1769332191888,0.0004,88345.0,88340.0,0.31350234]
[1769332192095,0.0004,88345.0,88342.0,0.31350234]
[1769332192255,0.0004,88345.0,88342.0,0.31397749]
[1769332193355,0.0004,88345.0,88343.0,1.11552247]
[1769332193552,0.0004,88345.0,88344.0,0.31350234]
[1769332194502,0.0004,88345.0,88344.0,1.45176481]
[1769332197333,1.09834555,88361.0,88344.0,1.45176481]
[1769332197577,0.9240406,88361.0,88344.0,1.45176481]
[1769332197987,0.9240406,88361.0,88345.0,0.31350234]
[1769332199424,0.0001642,88366.0,88345.0,0.31350234]
[1769332199629,0.0001642,88366.0,88342.0,0.00047515]
[1769332199630,0.0001642,88366.0,88352.0,0.31350234]
[1769332199803,0.0001642,88366.0,88354.0,0.31350234]
[1769332200585,0.0001642,88366.0,88357.0,1.45176481]
[1769332201640,0.0001642,88366.0,88357.0,1.13826247]
[1769332201842,0.0001642,88366.0,88358.0,0.31350234]
[1769332202050,0.0001642,88366.0,88359.0,0.48746234]
[1769332202260,0.0001642,88366.0,88359.0,0.48741487]
[1769332203296,0.0001642,88366.0,88359.0,0.17391253]
[1769332207304,0.0001642,88366.0,88362.0,0.32083777]
[1769332207519,0.0001642,88366.0,88364.0,0.32083777]
[1769332207730,0.0001535,88375.0,88366.0,0.0001642]
[1769332209592,0.0001535,88375.0,88365.0,0.26417106]
[1769332209798,0.9627156,88374.0,88359.0,0.17391253]
[1769332210011,0.97403114,88374.0,88359.0,0.17391253]
[1769332210213,0.01131592,88371.0,88359.0,0.17391253]
[1769332210418,0.9740314,88372.0,88359.0,0.17391253]
[1769332210838,0.97403152,88371.0,88359.0,0.17391253]
[1769332211575,0.97403152,88371.0,88357.0,0.16442103]
[1769332211576,0.01131618,88369.0,88357.0,0.16442103]
[1769332211798,0.9627156,88370.0,88357.0,0.16442103]
[1769332213306,0.9627156,88370.0,88352.0,0.32083777]
[1769332213307,0.97403165,88370.0,88353.0,0.32083777]
[1769332213895,0.97403165,88370.0,88354.0,0.31214554]
[1769332214105,0.9627156,88370.0,88354.0,0.31214554]
[1769332225915,0.11535372,88369.0,88352.0,0.17392]
[1769332226120,0.9627156,88367.0,88351.0,0.17392]
[1769332226322,1.07806932,88367.0,88351.0,0.17392]
[1769332226868,0.97403204,88367.0,88351.0,0.17392]
[1769332227073,0.9627156,88365.0,88351.0,0.17392]
[1769332227280,1.07737692,88365.0,88351.0,0.17392]
[1769332231785,0.9627156,88365.0,88351.0,0.17392]
[1769332232552,0.9627156,88365.0,88351.0,0.48606554]
[1769332234015,0.9627156,88374.0,88353.0,1.15185257]
[1769332234175,0.9627156,88374.0,88356.0,0.32164933]
[1769332234376,0.0001535,88375.0,88359.0,1.15185257]
[1769332234638,0.0001535,88375.0,88362.0,0.32164933]
[1769332234844,0.0001535,88375.0,88362.0,0.29840933]
[1769332235702,0.89874886,88377.0,88362.0,0.29840933]
[1769332235865,0.01131541,88375.0,88362.0,0.29840933]
[1769332236250,0.01131528,88376.0,88362.0,0.29840933]
[1769332236677,0.85348812,88376.0,88362.0,0.29840933]
[1769332237361,0.84217284,88376.0,88362.0,0.29840933]
[1769332237562,0.85348812,88376.0,88362.0,0.29840933]
[1769332237830,0.01131554,88374.0,88362.0,0.29840933]
[1769332238096,0.13344626,88370.0,88352.0,0.32180283]
[1769332238299,0.0678944,88373.0,88352.0,0.32180283]
[1769332238300,0.96365555,88369.0,88352.0,0.32180283]
[1769332238906,0.97497173,88369.0,88352.0,0.32180283]
[1769332239124,0.96305585,88369.0,88352.0,0.32180283]
[1769332239328,0.97437203,88369.0,88352.0,0.32180283]
[1769332240173,0.96305585,88369.0,88352.0,0.32180283]
[1769332242494,0.84157314,88369.0,88352.0,0.32180283]
[1769332242949,0.84157314,88369.0,88354.0,0.32164933]
[1769332244500,0.85289455,88375.0,88355.0,1.15185257]
[1769332244704,0.85289455,88375.0,88356.0,1.15185257]
[1769332244909,0.0004,88394.0,88359.0,0.32164933]
[1769332244910,0.01171464,88381.0,88359.0,0.32164933]
[1769332245127,0.01171464,88381.0,88360.0,0.32164933]
[1769332245128,0.01131503,88378.0,88360.0,0.32164933]
[1769332245272,1.06586601,88377.0,88360.0,0.32164933]
[1769332245462,1.07718117,88377.0,88360.0,0.32164933]
[1769332245669,1.06586601,88377.0,88360.0,0.32164933]
[1769332245871,1.06586601,88377.0,88361.0,1.15185257]
[1769332246075,1.06586601,88377.0,88362.0,0.32164933]
[1769332246295,1.07718117,88377.0,88362.0,0.32164933]
[1769332246944,1.06586601,88377.0,88362.0,0.32164933]
[1769332248900,1.07718117,88377.0,88362.0,0.32164933]
[1769332249523,1.07718129,88376.0,88362.0,0.32164933]
[1769332249922,1.07718129,88376.0,88352.0,0.0001535]
[1769332249923,0.01131567,88373.0,88352.0,0.0001535]
[1769332250151,0.79496001,88369.0,88352.0,0.0001535]
[1769332250298,0.91628041,88369.0,88352.0,0.0001535]
[1769332251127,0.90496423,88369.0,88352.0,0.0001535]
[1769332253203,0.91628041,88369.0,88352.0,0.0001535]
[1769332254322,0.90496423,88369.0,88352.0,0.0001535]
[1769332254547,0.90496423,88369.0,88353.0,0.32164933]
[1769332256747,0.79496001,88369.0,88353.0,0.32164933]
[1769332256953,0.11011488,88374.0,88355.0,0.32164933]
[1769332257134,0.11011488,88374.0,88356.0,0.32164933]
[1769332257647,0.79496001,88375.0,88356.0,0.32164933]
[1769332259384,0.11961032,88374.0,88352.0,0.0001535]
[1769332259586,0.79496001,88371.0,88352.0,0.0001535]
[1769332259790,0.90325479,88371.0,88353.0,1.15185257]
[1769332260004,0.90325479,88371.0,88354.0,0.32164933]
[1769332260214,0.79496001,88371.0,88354.0,0.32164933]
[1769332260626,0.79496001,88371.0,88355.0,0.32164933]
[1769332260849,0.79496001,88371.0,88355.0,1.4735019]
[1769332261273,0.79496001,88371.0,88356.0,0.32164933]
[1769332262898,0.79496001,88370.0,88351.0,1.32577257]
[1769332263148,0.79496001,88370.0,88352.0,0.30449006]
[1769332263550,0.79496001,88370.0,88353.0,1.11461373]
[1769332263784,0.79496001,88370.0,88354.0,0.30449006]
[1769332265046,0.79496001,88370.0,88354.0,1.11461373]
[1769332265243,0.79496001,88370.0,88355.0,0.30449006]
[1769332266077,0.79496001,88375.0,88355.0,1.41910379]
[1769332266292,0.79496001,88375.0,88356.0,0.30449006]
[1769332266703,0.56508652,88375.0,88356.0,0.30449006]
[1769332267333,0.57870079,88374.0,88356.0,0.30449006]
[1769332267540,0.56738525,88372.0,88356.0,0.30449006]
[1769332268837,0.01131554,88374.0,88356.0,0.30449006]
[1769332268838,0.57870143,88369.0,88356.0,0.30449006]
[1769332269059,0.56738525,88369.0,88356.0,0.30449006]
[1769332269500,0.56738525,88369.0,88351.0,1.59302379]
[1769332270592,0.56738525,88369.0,88351.0,1.28853373]
[1769332270799,0.56738525,88369.0,88352.0,0.30449006]
[1769332272075,0.56705041,88369.0,88352.0,0.30449006]
[1769332273848,0.37726484,88369.0,88352.0,0.30449006]
[1769332274256,0.37726484,88369.0,88352.0,1.15526065]
[1769332274462,0.37726484,88369.0,88353.0,0.31013073]
[1769332280426,0.37726484,88369.0,88354.0,0.31013073]
[1769332283499,0.38858102,88369.0,88354.0,0.31013073]
[1769332283906,0.37726484,88369.0,88354.0,0.31013073]
[1769332286698,0.10738299,88371.0,88347.0,0.0001559]
[1769332286699,0.01131644,88367.0,88347.0,0.0001559]
[1769332286918,0.37916604,88365.0,88348.0,0.31013073]
[1769332287300,0.39048273,88365.0,88348.0,0.31013073]
[1769332287499,0.37916604,88365.0,88348.0,0.31013073]
[1769332287908,0.39048273,88365.0,88348.0,1.15526065]
[1769332288160,0.39048273,88365.0,88349.0,0.31013073]
[1769332288600,0.01131682,88364.0,88349.0,0.31013073]
[1769332288835,0.01131695,88363.0,88349.0,0.31013073]
[1769332289221,0.01131682,88364.0,88349.0,0.31013073]
[1769332289708,0.39048273,88365.0,88349.0,0.31013073]
[1769332289930,0.01131682,88364.0,88349.0,0.31013073]
[1769332290114,0.01131682,88364.0,88348.0,1.15526065]
[1769332290115,0.01131631,88368.0,88347.0,0.0001559]
[1769332290116,0.0113181,88354.0,88347.0,0.0001559]
[1769332291299,0.39048401,88355.0,88347.0,0.0001559]
[1769332291700,0.0113181,88354.0,88347.0,0.0001559]
[1769332292555,0.01131836,88352.0,88347.0,0.0001559]
[1769332292750,0.39048453,88351.0,88347.0,0.0001559]
[1769332293185,0.37916604,88351.0,88347.0,0.0001559]
[1769332297373,0.09495207,88355.0,88347.0,0.0001559]
[1769332298402,0.37916604,88357.0,88347.0,0.0001559]
[1769332300265,0.39048376,88357.0,88347.0,0.0001559]
[1769332300465,0.01131797,88355.0,88347.0,0.0001559]
[1769332300810,0.01131823,88353.0,88347.0,0.0001559]
[1769332301785,0.0113181,88354.0,88347.0,0.0001559]
[1769332302209,0.01131823,88353.0,88347.0,0.0001559]
[1769332302937,0.37916604,88351.0,88347.0,0.0001559]
[1769332304996,0.39048363,88358.0,88347.0,0.0001559]
[1769332305194,0.01131797,88355.0,88347.0,0.0001559]
[1769332305358,0.04529103,88356.0,88347.0,0.0001559]
[1769332306395,0.03397318,88356.0,88347.0,0.0001559]
[1769332307965,0.01131772,88357.0,88347.0,0.0001559]
[1769332308990,0.39048363,88358.0,88347.0,0.0001559]
[1769332309398,0.01131772,88357.0,88347.0,0.0001559]
[1769332310760,0.39048363,88358.0,88347.0,0.0001559]
[1769332311642,0.01131772,88357.0,88347.0,0.0001559]
[1769332314204,0.01131823,88353.0,88347.0,0.0001559]
[1769332314410,0.01131836,88352.0,88347.0,0.0001559]
[1769332315496,0.01131849,88351.0,88347.0,0.0001559]
[1769332315898,0.05659029,88355.0,88347.0,0.0001559]
[1769332315899,0.21441267,88357.0,88347.0,0.0001559]
[1769332316098,0.59357871,88357.0,88347.0,0.0001559]
[1769332316301,0.01131849,88351.0,88347.0,0.0001559]
[1769332317551,0.01131836,88352.0,88347.0,0.0001559]
[1769332317756,0.01131823,88353.0,88347.0,0.0001559]
[1769332318212,0.39148376,88357.0,88347.0,0.0001559]
[1769332318380,0.0113181,88354.0,88347.0,0.0001559]
[1769332318622,0.01131836,88352.0,88347.0,0.0001559]
[1769332319028,0.001,88351.0,88347.0,0.0001559]
[1769332319405,0.06791019,88352.0,88347.0,0.0001559]
[1769332319809,0.06791019,88352.0,88330.0,0.17392]
[1769332319810,0.05659876,88342.0,88331.0,0.28678424]
[1769332320021,0.0113199,88340.0,88331.0,0.21706424]
[1769332320599,0.00047482,88342.0,88331.0,0.04700064]
[1769332320752,0.00047482,88342.0,88329.0,0.29602723]
[1769332320962,0.00047482,88342.0,88330.0,1.09585605]
[1769332322811,0.01131977,88341.0,88330.0,1.09585605]
[1769332323012,0.01179446,88342.0,88330.0,1.09585605]
[1769332323374,0.01131977,88341.0,88330.0,1.09585605]
[1769332323593,0.0113199,88340.0,88330.0,1.09585605]
[1769332324188,0.01131977,88341.0,88330.0,1.09585605]
[1769332324545,0.00047482,88342.0,88330.0,1.09585605]
[1769332324757,0.47936603,88349.0,88331.0,0.29322338]
[1769332324912,0.47936603,88349.0,88332.0,1.06109193]
[1769332325322,0.47936603,88349.0,88333.0,1.40079531]
[1769332327155,0.10019999,88349.0,88334.0,1.08433193]
[1769332328519,0.01131913,88346.0,88333.0,0.29322338]
[1769332328748,0.01131964,88342.0,88333.0,0.29322338]
[1769332329372,0.01131964,88342.0,88331.0,1.10804675]
[1769332330931,0.01131977,88341.0,88331.0,1.10804675]
[1769332331538,0.01131977,88341.0,88331.0,0.00047482]
[1769332331799,0.01132054,88335.0,88331.0,0.00047482]
[1769332331922,0.01132028,88337.0,88329.0,0.0001461]
[1769332332141,0.01132015,88338.0,88329.0,0.0001461]
[1769332332142,0.74124332,88344.0,88329.0,0.0001461]
[1769332332143,0.0001461,88360.0,88331.0,0.29322338]
[1769332332349,0.0001461,88360.0,88335.0,0.29322338]
[1769332332555,0.0001461,88360.0,88337.0,0.29322338]
[1769332332773,0.0001461,88360.0,88341.0,0.29322338]
[1769332333023,0.0001461,88360.0,88343.0,0.29322338]
[1769332333229,0.01131785,88356.0,88332.0,0.04112332]
[1769332333437,0.01131925,88345.0,88331.0,4.747e-05]
[1769332333883,0.30305932,88346.0,88331.0,4.747e-05]
[1769332334202,0.0113181,88354.0,88335.0,1.11335103]
[1769332334410,0.0113181,88354.0,88336.0,1.399663]
[1769332334811,0.31030494,88355.0,88336.0,1.399663]
[1769332335014,0.0113181,88354.0,88336.0,1.399663]
[1769332335486,0.17396,88353.0,88336.0,1.399663]
[1769332335705,0.17396,88353.0,88337.0,1.11335103]
[1769332336250,0.17395989,88353.0,88337.0,1.11335103]
[1769332337635,0.29174019,88357.0,88338.0,0.28631197]
[1769332337848,0.008228,88359.0,88341.0,1.11335103]
[1769332338063,0.01131772,88357.0,88343.0,0.99998939]
[1769332338264,0.06481564,88359.0,88343.0,0.94330857]
[1769332338471,0.01131759,88358.0,88343.0,0.82994693]
[1769332338664,0.01131759,88358.0,88343.0,0.71658529]
[1769332338868,0.0602671,88359.0,88343.0,0.65990447]
[1769332339184,0.04894964,88359.0,88343.0,0.65990447]
[1769332339378,0.0602671,88359.0,88343.0,0.65990447]
[1769332339587,0.12292037,88358.0,88343.0,0.65990447]
[1769332339782,0.0602671,88359.0,88343.0,0.65990447]
[1769332339986,0.008228,88359.0,88343.0,0.65990447]
[1769332344173,0.01954546,88359.0,88343.0,0.65990447]
[1769332344374,0.74888029,88359.0,88343.0,0.65990447]
[1769332345184,0.74888029,88359.0,88343.0,0.94621644]
[1769332345448,0.85927244,88359.0,88343.0,0.94621644]
[1769332346647,0.8705899,88359.0,88343.0,0.94621644]
[1769332346851,0.01131772,88357.0,88343.0,0.28631197]
[1769332347190,0.01131772,88357.0,88338.0,1.11335103]
[1769332347395,0.11160278,88356.0,88338.0,1.399663]
[1769332347938,0.12292063,88356.0,88338.0,1.399663]
[1769332348138,0.11160278,88356.0,88338.0,1.399663]
[1769332348365,0.11160278,88356.0,88339.0,0.28631197]
[1769332349959,0.12292063,88356.0,88339.0,0.28631197]
[1769332350325,0.11160278,88356.0,88339.0,0.28631197]
[1769332350466,0.12292063,88356.0,88339.0,0.28631197]
[1769332350669,0.11160278,88356.0,88339.0,0.28631197]
[1769332351292,0.11160278,88356.0,88331.0,4.747e-05]
[1769332351293,0.11160278,88356.0,88340.0,1.11335103]
[1769332351500,0.29898697,88358.0,88341.0,0.28631197]
[1769332351699,0.29898697,88358.0,88342.0,1.399663]
[1769332352749,0.008228,88359.0,88343.0,0.28631197]
[1769332352980,0.008228,88359.0,88343.0,1.34347704]
[1769332354633,0.008228,88359.0,88343.0,1.05716507]
[1769332354837,0.008228,88359.0,88344.0,0.29595919]
[1769332355807,0.008228,88359.0,88344.0,0.28995919]
[1769332356009,0.74065229,88358.0,88335.0,1.05716507]
[1769332356260,0.75197026,88355.0,88337.0,1.05716507]
[1769332356410,0.75197026,88355.0,88337.0,1.35312426]
[1769332356853,0.75197026,88355.0,88338.0,0.29595919]
[1769332357169,0.75197026,88355.0,88338.0,1.35312426]
[1769332358144,0.74065229,88355.0,88338.0,1.35312426]
[1769332358537,0.75197026,88355.0,88338.0,1.35312426]
[1769332359330,0.74065229,88355.0,88338.0,0.29595919]
[1769332359515,0.74065229,88355.0,88335.0,1.05716507]
[1769332359721,0.74065229,88355.0,88338.0,0.29595919]
[1769332359931,0.29101042,88358.0,88341.0,1.35312426]
[1769332360343,0.4026132,88358.0,88341.0,1.35312426]
[1769332360561,0.41393079,88358.0,88341.0,1.35312426]
[1769332360769,0.01131772,88357.0,88341.0,1.35312426]
[1769332361621,0.41393079,88358.0,88341.0,1.35312426]
[1769332362185,0.4026132,88358.0,88341.0,1.35312426]
[1769332364192,0.29101042,88358.0,88341.0,1.35312426]
[1769332364578,0.29101042,88358.0,88331.0,4.747e-05]
[1769332364887,0.29101042,88358.0,88334.0,1.05716507]
[1769332365220,0.008228,88359.0,88331.0,0.01136852]
[1769332365221,0.008228,88359.0,88340.0,1.05716507]
[1769332365423,0.182188,88359.0,88343.0,0.29595919]
[1769332365634,0.182188,88359.0,88345.0,0.29595919]
[1769332365945,0.0001461,88360.0,88350.0,1.05716507]
[1769332366116,0.17396,88367.0,88341.0,0.01131977]
[1769332366117,0.17396,88367.0,88354.0,1.05716507]
[1769332366353,0.17396,88367.0,88358.0,1.02192083]
[1769332366559,0.0001461,88369.0,88342.0,0.03166812]
[1769332366560,0.0001461,88369.0,88360.0,1.05716507]
[1769332366764,0.0001461,88369.0,88363.0,0.29595919]
[1769332366940,0.0001461,88369.0,88363.0,1.35312426]
[1769332367320,0.04532,88374.0,88363.0,1.35312426]
[1769332367322,0.05663554,88374.0,88363.0,1.35312426]
[1769332367560,0.01131567,88373.0,88363.0,1.35312426]
[1769332368139,0.0113158,88372.0,88363.0,1.35312426]
[1769332368360,0.03396771,88372.0,88363.0,1.35312426]
[1769332372301,0.03396771,88372.0,88363.0,0.32429434]
[1769332372503,0.03396771,88372.0,88363.0,0.29595919]
[1769332373372,0.04528351,88372.0,88363.0,0.29595919]
[1769332373520,0.03396771,88372.0,88363.0,0.23962766]
[1769332373722,0.03396771,88372.0,88363.0,0.18296031]
[1769332374125,0.03396771,88372.0,88363.0,0.12629296]
[1769332374318,0.03396771,88372.0,88358.0,1.35312426]
[1769332374579,0.04528351,88372.0,88359.0,1.05716507]
[1769332376248,0.0113158,88372.0,88359.0,1.05716507]
[1769332376448,0.03396771,88371.0,88359.0,1.05716507]
[1769332377916,0.01653796,88376.0,88359.0,1.05716507]
[1769332378218,0.05657701,88376.0,88359.0,1.05730752]
[1769332378762,0.04528338,88373.0,88359.0,1.05730752]
[1769332379711,0.01131605,88370.0,88359.0,1.05730752]
[1769332379935,0.01131605,88370.0,88359.0,0.00014245]
[1769332380139,0.01131618,88369.0,88359.0,0.00014245]
[1769332380346,0.0113158,88372.0,88359.0,0.00014245]
[1769332380737,0.3362938,88373.0,88359.0,0.00014245]
[1769332381338,0.32497813,88373.0,88359.0,0.00014245]
[1769332381541,0.3362938,88373.0,88359.0,0.00014245]
[1769332381983,0.0113158,88372.0,88359.0,0.00014245]
[1769332382125,0.32497813,88373.0,88359.0,0.00014245]
[1769332382686,0.3362938,88373.0,88359.0,0.00014245]
[1769332383108,0.0113158,88372.0,88359.0,0.00014245]
[1769332383674,0.11160278,88371.0,88359.0,0.00014245]
[1769332383871,0.83993839,88368.0,88359.0,0.00014245]
[1769332384098,0.03396771,88373.0,88360.0,1.11597758]
[1769332384307,0.01131554,88374.0,88360.0,0.30020452]
[1769332384621,0.03396771,88373.0,88361.0,1.11597758]
[1769332384843,0.04528338,88373.0,88361.0,1.11597758]
[1769332385872,0.0113158,88372.0,88361.0,1.11597758]
[1769332386047,0.04528338,88373.0,88361.0,1.11597758]
[1769332386258,0.0113158,88372.0,88361.0,1.11597758]
[1769332386434,0.04528338,88373.0,88361.0,1.11597758]
[1769332386682,0.0113158,88372.0,88361.0,1.11597758]
[1769332386879,0.04528338,88373.0,88361.0,1.11597758]
[1769332387302,0.0113158,88372.0,88361.0,1.11597758]
[1769332387526,0.0113158,88372.0,88359.0,0.00014245]
[1769332387729,0.03396771,88373.0,88360.0,1.11597758]
[1769332387933,0.03396771,88373.0,88362.0,1.3934421]
[1769332388082,0.03396771,88373.0,88362.0,1.39284229]
[1769332389174,0.03396771,88373.0,88362.0,1.09263777]
[1769332389372,0.03396771,88373.0,88362.0,1.39284229]
[1769332389829,0.03396771,88373.0,88362.0,1.3361743]
[1769332390070,0.03396771,88373.0,88362.0,1.22283832]
[1769332390309,0.03396771,88373.0,88362.0,1.10950234]
[1769332390535,0.03396771,88373.0,88362.0,0.93949837]
[1769332390709,0.03396771,88373.0,88362.0,0.82616239]
[1769332390878,0.03396771,88373.0,88362.0,0.71282641]
[1769332391080,0.03396771,88373.0,88362.0,0.59949043]
[1769332391283,0.03396771,88373.0,88362.0,0.48615445]
[1769332391460,0.03396771,88373.0,88362.0,0.37281847]
[1769332391697,0.03396771,88373.0,88362.0,1.31879208]
[1769332391902,0.03396771,88373.0,88362.0,1.2054561]
[1769332392103,0.03396771,88373.0,88362.0,1.09212012]
[1769332392342,0.03396771,88373.0,88362.0,1.03545213]
[1769332392921,0.03396771,88373.0,88362.0,1.03469807]
[1769332393547,0.45478752,88380.0,88362.0,1.03469807]
[1769332393945,0.03396664,88379.0,88362.0,1.03469807]
[1769332394950,0.03396664,88379.0,88362.0,1.31550667]
[1769332395126,0.16141786,88380.0,88362.0,1.31550667]
[1769332395302,0.19538292,88380.0,88362.0,1.31550667]
[1769332395467,0.19538292,88380.0,88363.0,0.28049703]
[1769332395673,0.16141786,88380.0,88365.0,1.06986062]
[1769332395878,0.16141786,88380.0,88367.0,1.06986062]
[1769332400392,0.49256317,88380.0,88362.0,1.06986062]
[1769332401250,0.0004,88381.0,88365.0,0.28125152]
[1769332401439,0.0004,88381.0,88368.0,1.06986062]
[1769332402285,0.0004,88381.0,88367.0,0.28150042]
[1769332402461,0.0004,88381.0,88363.0,1.06986062]
[1769332404448,0.01171464,88381.0,88363.0,1.06986062]
[1769332404652,1.16553957,88378.0,88359.0,0.00014245]
[1769332404853,0.33114531,88375.0,88360.0,0.17392]
[1769332405121,0.33114531,88374.0,88360.0,0.16453288]
[1769332405441,0.33114531,88374.0,88359.0,0.00014245]
[1769332407385,0.33114531,88373.0,88359.0,0.00014245]
[1769332408000,0.33114531,88371.0,88359.0,0.00014245]
[1769332411665,0.05657764,88375.0,88359.0,0.00014245]
[1769332411666,1.09764935,88370.0,88359.0,0.00014245]
[1769332411905,0.33114531,88367.0,88352.0,0.000159]
[1769332412105,0.33114531,88365.0,88352.0,0.000159]
[1769332414533,0.33114531,88365.0,88352.0,1.09308586]
[1769332414733,1.15236401,88373.0,88353.0,1.1109566]
[1769332414933,0.32854327,88372.0,88353.0,1.09292686]
[1769332416060,0.32854327,88372.0,88354.0,0.01689819]
[1769332416264,0.32854327,88372.0,88355.0,1.09292686]
[1769332416469,1.48090728,88371.0,88356.0,0.01689781]
[1769332416646,1.48090728,88371.0,88352.0,1.10998368]
[1769332416993,1.48090728,88371.0,88352.0,1.09308586]
[1769332417747,0.32854327,88371.0,88354.0,1.09292686]
[1769332417948,0.32854327,88371.0,88356.0,1.09292686]
[1769332418189,0.32854327,88371.0,88357.0,0.0170163]
[1769332418594,0.00014237,88373.0,88359.0,1.40995095]
[1769332418755,0.00014237,88373.0,88361.0,1.09292686]
[1769332418956,0.00014237,88373.0,88363.0,1.09292686]
[1769332423164,0.00014237,88373.0,88364.0,1.09292686]
[1769332424765,0.00014237,88373.0,88366.0,1.09292686]
[1769332428756,0.00014237,88373.0,88366.0,1.09310706]
[1769332429115,0.32854327,88381.0,88366.0,1.09310706]
[1769332431907,0.0004,88385.0,88370.0,0.29387422]
[1769332432201,0.0004,88385.0,88371.0,0.17392]
[1769332432397,0.0004,88385.0,88373.0,1.09292686]
[1769332433860,0.0004,88385.0,88373.0,1.4217382]
[1769332434168,0.0004,88385.0,88374.0,1.09292686]
[1769332435921,0.0004,88385.0,88368.0,0.0001802]
[1769332435922,0.01,88374.0,88368.0,0.0001802]
[1769332436123,0.01,88374.0,88369.0,0.17392]
[1769332436281,0.32854327,88378.0,88369.0,0.17392]
[1769332441294,0.1454802,88378.0,88369.0,0.17392]
[1769332441498,0.1454802,88378.0,88369.0,0.19585802]
[1769332451662,1.15236401,88381.0,88369.0,0.19585802]
[1769332452783,0.32398307,88384.0,88369.0,0.19585802]
[1769332453002,0.32403053,88384.0,88369.0,0.19585802]
[1769332453424,0.32403053,88384.0,88370.0,0.02013382]
[1769332453633,0.32403053,88384.0,88371.0,0.03806525]
[1769332453841,0.32403053,88384.0,88372.0,0.02013336]
[1769332455677,4.746e-05,88384.0,88372.0,0.02013336]
[1769332459199,4.746e-05,88384.0,88373.0,1.39897202]
[1769332459415,4.746e-05,88384.0,88369.0,0.17392]
[1769332460765,1.43616919,88384.0,88369.0,0.17392]
[1769332462240,1.43612173,88383.0,88369.0,0.17392]
[1769332464937,4.746e-05,88384.0,88369.0,0.17392]
[1769332465132,1.43612173,88382.0,88369.0,0.17392]